lending/lending_fUSD_20251114
["ID","MTS","AMOUNT","RATE_DAILY","PERIOD"]
[393899047,1763081629223,234.38,0.000257,120]
[393899050,1763081642840,234.0,0.00016785,2]
[393899052,1763081692403,500.0,0.00016785,2]
[393899053,1763081692458,500.0,0.00016785,2]
[393899054,1763081692522,500.0,0.00016785,2]
[393899055,1763081692560,507.10713143,0.00016785,2]
[393899056,1763081701284,300.0,0.00016785,2]
[393899077,1763081767718,780.78212173,0.00016686,2]
[393899079,1763081825003,500.0,0.00041034,120]
[393899080,1763081825602,500.0,0.00041034,120]
[393899081,1763081826208,500.0,0.00041034,120]
[393899082,1763081826796,500.0,0.00041034,120]
[393899083,1763081827090,314.34384959,0.00016686,2]
[393899084,1763081827405,500.0,0.00041034,120]
[393899085,1763081828001,500.0,0.00041034,120]
[393899086,1763081828594,500.0,0.00041034,120]
[393899087,1763081829201,500.0,0.00041034,120]
[393899088,1763081829804,500.0,0.00041034,120]
[393899089,1763081830420,500.0,0.00041034,120]
[393899090,1763081831488,500.0,0.00041034,120]
[393899091,1763081831856,500.0,0.00041034,120]
[393899092,1763081832468,500.0,0.00041034,120]
[393899093,1763081833108,500.0,0.00041034,120]
[393899094,1763081833845,500.0,0.00041034,120]
[393899095,1763081834459,500.0,0.00041034,120]
[393899096,1763081835062,500.0,0.00041034,120]
[393899097,1763081835679,500.0,0.00041034,120]
[393899098,1763081836326,500.0,0.00041034,120]
[393899099,1763081837032,500.0,0.00041034,120]
[393899100,1763081864443,1200.0,0.00016785,2]
[393899101,1763081865221,331.97899002,0.00016686,2]
[393899102,1763081989553,173.85,0.00016648,2]
[393899105,1763082003794,691.55,0.00016776,2]
[393899106,1763082005921,3966.39790723,0.00016776,2]
[393899107,1763082005943,5579.92209277,0.00016776,2]
[393899128,1763082048348,703.05219428,0.00016686,2]
[393899130,1763082086918,3717.03571295,0.00016604,2]
[393899131,1763082086943,2445.79428705,0.00016604,2]
[393899140,1763082125723,500.0,0.00040956,120]
[393899141,1763082126328,500.0,0.00040956,120]
[393899142,1763082126921,500.0,0.00040956,120]
[393899143,1763082127568,500.0,0.00040956,120]
[393899144,1763082128167,500.0,0.00040956,120]
[393899145,1763082128758,500.0,0.00040956,120]
[393899146,1763082129393,500.0,0.00040956,120]
[393899147,1763082130037,500.0,0.00040956,120]
[393899148,1763082130653,500.0,0.00040956,120]
[393899149,1763082131441,500.0,0.00040956,120]
[393899150,1763082131908,500.0,0.00040956,120]
[393899151,1763082132531,500.0,0.00040956,120]
[393899152,1763082133171,500.0,0.00040956,120]
[393899153,1763082133777,500.0,0.00040956,120]
[393899154,1763082134394,500.0,0.00040956,120]
[393899155,1763082135241,500.0,0.00040956,120]
[393899156,1763082135620,500.0,0.00040956,120]
[393899157,1763082136252,500.0,0.00040956,120]
[393899158,1763082136867,500.0,0.00040956,120]
[393899159,1763082137500,500.0,0.00040956,120]
[393899160,1763082212019,568.77468085,0.00040956,120]
[393899163,1763082230335,561.46292857,0.00016786,2]
[393899166,1763082253350,715.03403075,0.00016785,2]
[393899167,1763082285374,630.76008093,0.00016686,2]
[393899170,1763082306538,500.0,0.00016786,2]
[393899191,1763082329524,635.0385077,0.00016686,2]
[393899192,1763082346766,1852.42,0.00016623,2]
[393899193,1763082355795,-1000.0,0.00016786,2]
[393899194,1763082358123,-1000.0,0.00016786,2]
[393899195,1763082360637,-1000.0,0.00016786,2]
[393899196,1763082363975,-1000.0,0.00016786,2]
[393899197,1763082366535,1000.0,0.00016686,2]
[393899198,1763082366558,2659.500165,0.00016686,2]
[393899199,1763082366578,1018.842735,0.00016686,2]
[393899203,1763082425540,500.0,0.00040956,120]
[393899204,1763082426148,500.0,0.00040956,120]
[393899205,1763082426767,500.0,0.00040956,120]
[393899206,1763082427368,500.0,0.00040956,120]
[393899207,1763082428710,500.0,0.00040956,120]
[393899208,1763082428881,500.0,0.00040956,120]
[393899209,1763082429394,500.0,0.00040956,120]
[393899213,1763082464184,314.0,0.00016785,2]
[393899214,1763082481192,300.0,0.00016785,2]
[393899215,1763082489089,421.960617,0.00016786,2]
[393899219,1763082541835,550.0,0.00016785,2]
[393899220,1763082543056,300.0,0.00016785,2]
[393899238,1763082574625,500.0,0.00016786,2]
[393899239,1763082579645,500.0,0.00016786,2]
[393899241,1763082585025,500.0,0.00016786,2]
[393899244,1763082590118,500.0,0.00016786,2]
[393899246,1763082594679,500.0,0.00016786,2]
[393899247,1763082599623,500.0,0.00016786,2]
[393899248,1763082604621,500.0,0.00016786,2]
[393899249,1763082609027,553.24,0.00016776,2]
[393899250,1763082609633,500.0,0.00016786,2]
[393899251,1763082609773,594.47416783,0.00016686,2]
[393899253,1763082613194,1947.49248017,0.00016776,2]
[393899254,1763082613217,2825.66751983,0.00016776,2]
[393899258,1763082614642,500.0,0.00016786,2]
[393899268,1763082619700,500.0,0.00016786,2]
[393899275,1763082624625,500.0,0.00016786,2]
[393899279,1763082629647,500.0,0.00016786,2]
[393899298,1763082632057,-1154.26343132,0.00016786,2]
[393899299,1763082632304,-1115.5,0.00016786,2]
[393899384,1763082638069,-4020.1655236,0.00016786,2]
[393899385,1763082638151,-11587.8002568,0.00016786,2]
[393899386,1763082638165,-5346.912,0.00016786,2]
[393899387,1763082638182,-5004.35725198,0.00016786,2]
[393899388,1763082638196,-3251.415,0.00016786,2]
[393899389,1763082638210,-1328.07909,0.00016786,2]
[393899479,1763082646301,-287.07500428,0.00016786,2]
[393899480,1763082646312,-9907.9,0.00016786,2]
[393899481,1763082646578,-255.75,0.00016786,2]
[393899534,1763082665185,670.67645911,0.000159,2]
[393899535,1763082665452,666.0,0.000159,2]
[393899536,1763082665717,666.0,0.000159,2]
[393899537,1763082665975,666.0,0.000159,2]
[393899538,1763082666230,666.0,0.000159,2]
[393899542,1763082695487,150.0,0.00016706,2]
[393899543,1763082696109,166.66,0.00015871,2]
[393899544,1763082696342,166.66,0.00016205,2]
[393899545,1763082696562,166.66,0.00016539,2]
[393899546,1763082703259,389.66,0.00040957,30]
[393899547,1763082706679,899.66306281,0.00016686,2]
[393899548,1763082726621,290.02295825,0.00016638,2]
[393899549,1763082726644,2927.35704175,0.00016638,2]
[393899551,1763082736601,335.8353,0.00016686,2]
[393899557,1763082768192,909.81,0.00013699,2]
[393899564,1763082804383,232.282002,0.00016702,2]
[393899565,1763082827513,277.40507899,0.00016686,2]
[393899568,1763082855836,222.30741425,0.000164,2]
[393899570,1763082885246,4020.63,0.00016546,2]
[393899594,1763082938111,1074.38316301,0.00016686,2]
[393899595,1763082938135,10000.01,0.00016686,2]
[393899596,1763082938158,10000.01,0.00016686,2]
[393899597,1763082938182,10000.01,0.00016686,2]
[393899598,1763082938207,10000.01,0.00016686,2]
[393899599,1763082938231,10000.01,0.00016686,2]
[393899600,1763082938256,10000.01,0.00016686,2]
[393899601,1763082938287,10000.01,0.00016686,2]
[393899602,1763082938314,10000.01,0.00016686,2]
[393899603,1763082938340,10000.01,0.00016686,2]
[393899604,1763082953071,2033.56,0.00016515,2]
[393899606,1763082982646,2840.13,0.00016512,2]
[393899607,1763082983409,678.40429168,0.00016686,2]
[393899611,1763082988476,156.27506629,0.00016586,2]
[393899612,1763082991436,223.01190349,0.00016685,2]
[393899615,1763083074786,500.0,0.00016586,2]
[393899616,1763083112731,277.40507897,0.00016586,2]
[393899617,1763083120325,999.0,0.000166,3]
[393899619,1763083127470,809.69675652,0.00016586,2]
[393899620,1763083138006,264.73319764,0.00016503,20]
[393899621,1763083156068,200.0,0.00016577,2]
[393899622,1763083180473,520.16489686,0.00016586,2]
[393899624,1763083204166,442.6,0.00016676,2]
[393899625,1763083206767,55.02880855,0.00016676,2]
[393899626,1763083206790,2331.55119145,0.00016676,2]
[393899651,1763083235080,150.39,0.00030137,120]
[393899652,1763083244987,500.0,0.00016586,2]
[393899653,1763083253734,631.78,0.00016685,2]
[393899657,1763083266325,-1000.0,0.00016686,2]
[393899658,1763083271098,-1000.0,0.00016686,2]
[393899659,1763083272285,-1000.0,0.00016686,2]
[393899660,1763083273107,-1000.0,0.00016686,2]
[393899661,1763083274182,-1000.0,0.00016686,2]
[393899662,1763083275139,-1000.0,0.00016686,2]
[393899663,1763083275925,-1000.0,0.00016686,2]
[393899664,1763083276860,-1000.0,0.00016686,2]
[393899665,1763083277659,-1000.0,0.00016686,2]
[393899666,1763083278522,-1000.0,0.00016686,2]
[393899667,1763083279454,-1000.0,0.00016686,2]
[393899669,1763083280269,-1000.0,0.00016686,2]
[393899670,1763083281071,-1000.0,0.00016686,2]
[393899671,1763083281900,-1000.0,0.00016686,2]
[393899672,1763083282864,-1000.0,0.00016686,2]
[393899673,1763083283661,-1000.0,0.00016686,2]
[393899674,1763083284763,-1000.0,0.00016686,2]
[393899675,1763083286667,-1000.0,0.00016686,2]
[393899676,1763083287404,-1000.0,0.00016686,2]
[393899677,1763083288131,-1000.0,0.00016686,2]
[393899678,1763083288840,-1000.0,0.00016686,2]
[393899679,1763083289073,551.48,0.00016561,2]
[393899680,1763083289829,-1000.0,0.00016686,2]
[393899681,1763083322155,150.0,0.00016575,2]
[393899682,1763083322357,150.0,0.00016575,120]
[393899683,1763083372551,1706.164194,0.00016598,2]
[393899684,1763083461084,455.14428477,0.00016586,2]
[393899706,1763083547744,728.72708085,0.00016586,2]
[393899708,1763083572032,200.0,0.00016601,2]
[393899710,1763083600378,2000.0,0.00016571,2]
[393899711,1763083614068,745.16324893,0.000162,5]
[393899712,1763083614091,10000.01,0.000162,5]
[393899713,1763083614114,1622.88448306,0.000162,5]
[393899714,1763083629663,151.0,0.00016686,2]
[393899715,1763083629876,151.0,0.00016686,2]
[393899716,1763083630304,151.0,0.00016686,2]
[393899717,1763083630501,151.0,0.00016686,2]
[393899718,1763083630901,151.0,0.00016686,2]
[393899719,1763083631102,151.0,0.00016686,2]
[393899720,1763083631792,151.0,0.00016686,2]
[393899721,1763083632470,151.0,0.00016686,2]
[393899722,1763083676215,1657.40036,0.0001665,2]
[393899723,1763083676305,1657.40036,0.0001668,2]
[393899724,1763083696110,1917.08457606,0.0001,2]
[393899725,1763083707666,1937.24022088,0.0001,2]
[393899726,1763083707688,777.25862813,0.0001,2]
[393899732,1763083716926,9222.75137187,0.00015,3]
[393899733,1763083716951,10000.01,0.00015,3]
[393899734,1763083716976,10000.01,0.00015,3]
[393899735,1763083717004,10000.01,0.00015,3]
[393899736,1763083717029,10000.01,0.00015,3]
[393899737,1763083717054,10000.01,0.00015,3]
[393899738,1763083717076,10000.01,0.00015,3]
[393899739,1763083717101,10000.01,0.00015,3]
[393899740,1763083717124,10000.01,0.00015,3]
[393899741,1763083717147,10000.01,0.00015,3]
[393899742,1763083717175,37246.35016292,0.00015,3]
[393899750,1763083742878,398.25124913,0.00016586,2]
[393899751,1763083755247,169.0,0.000164,2]
[393899752,1763083756024,314.99746973,0.000164,2]
[393899753,1763083764896,1873.18,8.218e-05,2]
[393899754,1763083765101,1873.18,8.651e-05,2]
[393899755,1763083765325,1873.18,9.083e-05,2]
[393899756,1763083765600,1873.18,9.516e-05,2]
[393899757,1763083765768,1625.04128114,9.948e-05,2]
[393899758,1763083765794,248.13871886,9.948e-05,2]
[393899759,1763083765970,1873.18,0.00010381,2]
[393899760,1763083766177,1873.18,0.00010813,2]
[393899761,1763083766379,1873.18,0.00011246,2]
[393899762,1763083766595,1873.18,0.00011678,2]
[393899763,1763083766856,1873.18,0.00012111,2]
[393899764,1763083767074,385.97128114,0.00012543,2]
[393899765,1763083767097,1487.20871886,0.00012543,2]
[393899766,1763083767295,1873.18,0.00012976,2]
[393899767,1763083769428,1873.18,0.00013408,2]
[393899768,1763083770678,1873.18,0.00013841,2]
[393899769,1763083770933,1873.18,0.00014273,2]
[393899770,1763083771143,1020.08128114,0.00014706,2]
[393899771,1763083771167,853.09871886,0.00014706,2]
[393899772,1763083771377,1873.18,0.00015138,2]
[393899773,1763083771871,1873.18,0.00015571,2]
[393899774,1763083771922,1873.18,0.00016003,2]
[393899775,1763083772073,1873.18,0.00016436,2]
[393899776,1763083773380,1654.19128114,0.00016602,2]
[393899777,1763083773401,10000.01,0.00016602,2]
[393899778,1763083773423,8349.43864086,0.00016602,2]
[393899779,1763083802734,-4000.0,0.00016686,2]
[393899780,1763083803697,361.08651563,0.00016673,2]
[393899781,1763083803820,-4000.0,0.00016686,2]
[393899782,1763083805245,-4000.0,0.00016686,2]
[393899783,1763083805759,-4000.0,0.00016686,2]
[393899784,1763083806713,-4000.0,0.00016686,2]
[393899785,1763083806975,354.08,0.00016676,2]
[393899786,1763083807288,500.0,0.00016673,2]
[393899787,1763083807325,-4000.0,0.00016686,2]
[393899788,1763083807707,-4000.0,0.00016686,2]
[393899789,1763083808331,-4000.0,0.00016686,2]
[393899790,1763083808910,-4000.0,0.00016686,2]
[393899791,1763083809226,435.40484351,0.00016676,2]
[393899792,1763083809254,757.88515649,0.00016676,2]
[393899793,1763083809402,197.36930317,0.00016685,2]
[393899794,1763083809469,-4000.0,0.00016686,2]
[393899795,1763083810047,-4000.0,0.00016686,2]
[393899796,1763083810174,1004.12521198,0.00016685,2]
[393899806,1763083815675,190.73385,0.00040958,60]
[393899810,1763083817278,-1000.0,0.00016686,2]
[393899822,1763083831641,-500.0,0.00016686,2]
[393899833,1763083832380,-297.015,0.00016686,2]
[393899834,1763083832430,-347.114999,0.00016686,2]
[393899835,1763083832441,-9513.17898979,0.00016686,2]
[393899836,1763083832541,-111815.78433335,0.00016686,2]
[393899862,1763083838138,-400.0,0.00016686,2]
[393899866,1763083838477,-1207.00607737,0.00016686,2]
[393899971,1763083840722,-137845.42743748,0.00016686,2]
[393899972,1763083840731,-1000.0,0.00016686,2]
[393899973,1763083840740,-150.92577582,0.00016686,2]
[393899974,1763083840749,-250.0,0.00016688,2]
[393899975,1763083840758,-300.0,0.00016688,2]
[393899976,1763083840767,-300.0,0.00016689,2]
[393899977,1763083840776,-300.0,0.0001673,2]
[393899978,1763083840785,-728.72708082,0.00016732,2]
[393899979,1763083840795,-398.25124912,0.00016781,2]
[393899980,1763083840808,-239.61896,0.00016786,2]
[393899981,1763083840817,-186.93414408,0.00016786,2]
[393899982,1763083840825,-198.0,0.000168,2]
[393899983,1763083840835,-166.66,0.00016874,2]
[393899984,1763083840846,-728.72708082,0.00016878,2]
[393899985,1763083840855,-502.0,0.00016904,2]
[393899986,1763083840864,-3546.28583172,0.00016925,2]
[393899987,1763083840874,-500.0,0.00016973,2]
[393899988,1763083840884,-500.0,0.00016973,2]
[393899989,1763083840894,-501.88825075,0.00016973,2]
[393899990,1763083840903,-500.0,0.00016973,2]
[393899991,1763083840912,-500.0,0.00016973,2]
[393899993,1763083840922,-398.25124912,0.00016977,2]
[393899994,1763083840931,-28245.02693593,0.00016986,2]
[393899995,1763083840942,-2481.35,0.00016986,2]
[393900076,1763083846481,-288.96343328,0.00016986,2]
[393900077,1763083846743,-29946.06306407,0.00016986,2]
[393900078,1763083846753,-39465.53745358,0.00017,2]
[393900079,1763083846762,-728.72708082,0.00017024,2]
[393900080,1763083846772,-16199.25,0.00017025,2]
[393900081,1763083846783,-3546.28583168,0.00017033,2]
[393900082,1763083846792,-200.0,0.000171,6]
[393900083,1763083846805,-234.38,0.00017133,2]
[393900084,1763083846815,-3546.28583168,0.00017142,2]
[393900085,1763083846824,-728.72708082,0.0001717,2]
[393900086,1763083846835,-398.25124912,0.00017172,2]
[393900087,1763083846846,-500.0,0.000172,6]
[393900088,1763083846856,-166.66,0.00017208,2]
[393900089,1763083846865,-3206.82490037,0.0001725,2]
[393900097,1763083849401,-339.46093131,0.0001725,2]
[393900098,1763083849411,-283.35660975,0.000173,2]
[393900099,1763083849809,-716.64339025,0.000173,2]
[393900100,1763083849819,-700.0,0.000173,6]
[393900101,1763083849828,-97.41582749,0.00017316,2]
[393900103,1763083860452,200.0,0.00040958,30]
[393900105,1763083881171,1055.3599348,0.00016798,2]
[393900106,1763083892331,2306.953,0.00016798,2]
[393900107,1763083892366,220.29,0.00016798,2]
[393900108,1763083904731,718.36,0.00016706,2]
[393900109,1763083911726,171.94829185,0.00040958,60]
[393900110,1763083922866,191.41,0.00016712,2]
[393900111,1763083925728,803.822602,0.00040958,60]
[393900112,1763083930228,169.0811265,0.00040958,60]
[393900113,1763083930382,155.23229451,0.00040958,60]
[393900114,1763083932224,5507.6370652,0.00016753,2]
[393900115,1763083932246,2530.0129348,0.00016753,2]
[393900116,1763083936687,151.09717386,0.00040958,30]
[393900120,1763083965786,7469.9970652,0.00016798,2]
[393900121,1763083965811,10000.01,0.00016798,2]
[393900122,1763083965836,10000.01,0.00016798,2]
[393900123,1763083965859,10000.01,0.00016798,2]
[393900124,1763083965881,10000.01,0.00016798,2]
[393900125,1763083965903,10000.01,0.00016798,2]
[393900126,1763083965928,10000.01,0.00016798,2]
[393900127,1763083965950,10000.01,0.00016798,2]
[393900128,1763083965974,10000.01,0.00016798,2]
[393900129,1763083965995,10000.01,0.00016798,2]
[393900132,1763083978031,-2163.43879602,0.00016798,2]
[393900133,1763083978125,-10000.01,0.00016798,2]
[393900134,1763083978275,-10000.01,0.00016798,2]
[393900135,1763083978372,-10000.01,0.00016798,2]
[393900136,1763083978504,-10000.01,0.00016798,2]
[393900137,1763083978608,-10000.01,0.00016798,2]
[393900138,1763083978711,-10000.01,0.00016798,2]
[393900139,1763083978876,-10000.01,0.00016798,2]
[393900140,1763083978990,-10000.01,0.00016798,2]
[393900142,1763083980929,-10000.01,0.00016798,2]
[393900144,1763083981259,-10000.01,0.00016798,2]
[393900145,1763083987142,-10000.01,0.00016798,2]
[393900146,1763083987487,-10000.01,0.00016798,2]
[393900147,1763083987599,-10000.01,0.00016798,2]
[393900148,1763083987711,-10000.01,0.00016798,2]
[393900149,1763083988041,-10000.01,0.00016798,2]
[393900150,1763083988240,-10000.01,0.00016798,2]
[393900151,1763083988254,-10000.01,0.00016798,2]
[393900152,1763083993158,-10000.01,0.00016798,2]
[393900153,1763083993276,-10000.01,0.00016798,2]
[393900154,1763083993475,-10000.01,0.00016798,2]
[393900155,1763084005297,-10000.01,0.00016798,2]
[393900156,1763084005394,-10000.01,0.00016798,2]
[393900157,1763084008515,-500.0,0.00016774,2]
[393900158,1763084023827,-4355.93757232,0.00016798,2]
[393900159,1763084023868,-1288.13485536,0.00016798,2]
[393900160,1763084023971,-160.0,0.00016798,2]
[393900161,1763084039118,-525.0,0.00016879,2]
[393900162,1763084043510,500.68111661,0.000168,2]
[393900165,1763084048710,1800.445832,7.945e-05,2]
[393900166,1763084055032,172.45822769,0.00040958,60]
[393900167,1763084062941,378.49,0.00016722,2]
[393900190,1763084138998,2211.66,0.00016438,2]
[393900194,1763084170705,150.0,0.000167,2]
[393900196,1763084201095,673.14672819,0.00040958,30]
[393900202,1763084393733,1073.92,0.00040955,30]
[393900204,1763084404849,175.95547919,0.00016873,2]
[393900205,1763084409918,250.0,0.000166,2]
[393900213,1763084416563,-366.62136617,0.00016886,2]
[393900228,1763084464177,9266.76726766,0.00016622,2]
[393900229,1763084464199,10000.01,0.00016622,2]
[393900230,1763084464220,10000.01,0.00016622,2]
[393900231,1763084464241,10000.01,0.00016622,2]
[393900232,1763084464262,10000.01,0.00016622,2]
[393900233,1763084464282,10000.01,0.00016622,2]
[393900234,1763084464304,10000.01,0.00016622,2]
[393900235,1763084464325,10000.01,0.00016622,2]
[393900236,1763084464350,10000.01,0.00016622,2]
[393900237,1763084464371,8559.16273234,0.00016622,2]
[393900238,1763084468756,13526.0,0.00040955,30]
[393900240,1763084482866,1440.84726766,0.00016877,2]
[393900241,1763084482889,8567.81522394,0.00016877,2]
[393900242,1763084521551,1432.19477606,0.00016636,2]
[393900243,1763084521582,10000.01,0.00016636,2]
[393900244,1763084521613,10000.01,0.00016636,2]
[393900245,1763084521646,10000.01,0.00016636,2]
[393900246,1763084521679,10000.01,0.00016636,2]
[393900247,1763084521711,10000.01,0.00016636,2]
[393900248,1763084521744,10000.01,0.00016636,2]
[393900249,1763084521790,10000.01,0.00016636,2]
[393900250,1763084521828,10000.01,0.00016636,2]
[393900251,1763084521865,2052.01522394,0.00016636,2]
[393900252,1763084528412,294.979456,7.945e-05,2]
[393900263,1763084719497,618.58,0.00016595,2]
[393900278,1763084753266,150.0,0.000162,2]
[393900279,1763084753297,150.0,0.0001665,2]
[393900281,1763084795095,1258.51,0.00016598,2]
[393900283,1763084871763,5475.92532006,0.0001669,2]
[393900284,1763084871786,10000.01,0.0001669,2]
[393900285,1763084871808,2668.43467994,0.0001669,2]
[393900286,1763084873426,177.99,0.00013242,2]
[393900287,1763084873702,177.99,0.00016552,2]
[393900288,1763084903364,643.14,0.00016544,2]
[393900289,1763084953075,6332.45532006,0.00016547,2]
[393900290,1763084953098,9520.55467994,0.00016547,2]
[393900292,1763085006977,200.0,0.00040955,120]
[393900303,1763085019573,226.64,0.00016556,2]
[393900316,1763085031554,-525.0,0.0001692,2]
[393900317,1763085031563,-300.0,0.00016927,2]
[393900318,1763085031573,-300.0,0.00016947,2]
[393900319,1763085031583,-1200.0,0.00016949,2]
[393900320,1763085031592,-2300.3218,0.0001695,2]
[393900321,1763085031601,-2794.3819,0.0001695,2]
[393900322,1763085031610,-234.6662,0.0001695,2]
[393900323,1763085031619,-551.569,0.0001695,2]
[393900324,1763085031628,-1301.003,0.0001695,2]
[393900325,1763085031638,-2175.87751161,0.00016973,2]
[393900326,1763085031646,-291.1814089,0.00016973,2]
[393900327,1763085031656,-176.48461055,0.00016973,2]
[393900328,1763085031665,-151.0,0.0001704,2]
[393900329,1763085031674,-151.0,0.0001704,2]
[393900330,1763085031683,-151.0,0.0001704,2]
[393900331,1763085031692,-151.0,0.0001704,2]
[393900332,1763085031701,-151.0,0.0001704,2]
[393900333,1763085031711,-170.33417824,0.0001704,2]
[393900334,1763085031720,-151.0,0.0001704,2]
[393900335,1763085031729,-151.0,0.0001704,2]
[393900336,1763085031738,-151.0,0.0001704,2]
[393900337,1763085031748,-156.59838286,0.0001704,2]
[393900338,1763085031758,-601.34,0.0001704,2]
[393900339,1763085031767,-163.66,0.0001704,2]
[393900340,1763085031780,-284.38,0.0001704,2]
[393900341,1763085031789,-284.38,0.0001704,2]
[393900342,1763085031798,-550.0,0.00017049,2]
[393900343,1763085031808,-231177.08893238,0.0001705,2]
[393900349,1763085031862,-24257.05640686,0.0001705,2]
[393900350,1763085031874,-42002.39881082,0.0001705,2]
[393900376,1763085037569,-4095.9598871,0.00016973,2]
[393900377,1763085037579,-122330.94818829,0.0001705,2]
[393900378,1763085037590,-232.50766165,0.0001705,2]
[393900379,1763085037599,-501.92101644,0.00017073,2]
[393900380,1763085037609,-510.6439987,0.00017073,2]
[393900381,1763085037619,-500.0,0.00017073,2]
[393900382,1763085037628,-502.33367839,0.00017073,2]
[393900383,1763085037638,-500.0,0.00017073,2]
[393900384,1763085037647,-500.0,0.00017073,2]
[393900385,1763085037657,-420.60577606,0.00017073,2]
[393900386,1763085037668,-587.04635481,0.00017073,2]
[393900387,1763085037678,-500.0,0.00017073,2]
[393900388,1763085037687,-2175.87751157,0.00017076,2]
[393900389,1763085037696,-150.0,0.000171,2]
[393900390,1763085037705,-1000.0,0.000171,2]
[393900391,1763085037714,-200.0,0.000171,6]
[393900392,1763085037724,-291.18140883,0.00017105,2]
[393900394,1763085037733,-166.66,0.00017108,2]
[393900396,1763085037743,-402.72,0.0001714,2]
[393900398,1763085037752,-2175.87751157,0.00017179,2]
[393900400,1763085037761,-1114.0,0.000172,2]
[393900402,1763085037770,-500.0,0.000172,6]
[393900404,1763085037779,-525.0,0.00017235,2]
[393900406,1763085037790,-291.18140883,0.00017238,2]
[393900408,1763085037800,-1318.7439,0.0001725,2]
[393900409,1763085037809,-284.38,0.00017272,2]
[393900410,1763085037818,-2175.87751157,0.00017282,2]
[393900411,1763085037828,-800.0,0.000173,6]
[393900413,1763085037837,-1318.74389,0.00017316,2]
[393900416,1763085037847,-525.0,0.00017343,2]
[393900419,1763085037857,-525.0,0.0001736,2]
[393900421,1763085037866,-168.0,0.00017369,2]
[393900423,1763085037875,-291.18140883,0.0001737,2]
[393900425,1763085037885,-168.0,0.00017373,2]
[393900427,1763085037894,-525.0,0.00017382,2]
[393900429,1763085037904,-302.07,0.00017384,2]
[393900431,1763085037914,-2175.87751157,0.00017385,2]
[393900433,1763085037923,-1000.0,0.000174,2]
[393900435,1763085037933,-1100.0,0.000174,6]
[393900437,1763085037942,-402.72,0.00017414,2]
[393900438,1763085037951,-176.48461054,0.00017437,2]
[393900440,1763085037961,-485.0,0.00017441,2]
[393900442,1763085037970,-168.0,0.00017456,2]
[393900444,1763085037980,-2175.87751157,0.00017488,2]
[393900446,1763085037989,-1318.7439,0.000175,2]
[393900448,1763085038000,-1400.0,0.000175,6]
[393900450,1763085038010,-291.18140883,0.00017503,2]
[393900452,1763085038020,-168.0,0.00017513,2]
[393900454,1763085038029,-151.8,0.00017527,2]
[393900456,1763085038040,-5115.0,0.00017529,2]
[393900458,1763085038050,-166.66,0.00017542,2]
[393900460,1763085038060,-150.0,0.0001755,2]
[393900463,1763085038071,-151.0,0.00017557,2]
[393900465,1763085038081,-151.0,0.00017557,2]
[393900467,1763085038094,-151.0,0.00017558,2]
[393900469,1763085038103,-151.0,0.00017561,2]